lending/lending_fUSD_20240112
["ID","MTS","AMOUNT","RATE_DAILY","PERIOD"]
[311345948,1705065117949,-1316.49,0.00026427,2]
[311345949,1705065117959,-565.15,0.00026427,2]
[311345950,1705065117968,-4908.84,0.00026427,2]
[311345951,1705065117978,-567.77,0.00026427,2]
[311345952,1705065117987,-500.0,0.00026427,2]
[311345953,1705065117996,-1555.67,0.00026427,2]
[311345954,1705065118006,-1400.6,0.00026427,5]
[311345955,1705065118016,-1433.76,0.00026427,2]
[311345956,1705065118027,-1359.51,0.00026427,2]
[311345957,1705065118036,-647.67,0.00026427,2]
[311345958,1705065118046,-756.74,0.00026427,2]
[311345959,1705065118057,-1876.2,0.00026427,2]
[311345960,1705065118067,-1309.3,0.00026427,2]
[311345961,1705065118076,-937.63,0.00026427,2]
[311345962,1705065118085,-2066.36,0.00026427,2]
[311345963,1705065118094,-3090.41,0.00026427,2]
[311345964,1705065118103,-660.9,0.00026427,2]
[311345965,1705065118113,-500.0,0.00026427,2]
[311345966,1705065118123,-500.0,0.00026427,2]
[311345967,1705065118132,-500.0,0.00026427,2]
[311345968,1705065118141,-1935.88,0.00026427,2]
[311345969,1705065118150,-505.19,0.00026427,2]
[311345970,1705065118160,-527.44,0.00026427,2]
[311345971,1705065118171,-500.0,0.00026427,2]
[311345972,1705065118180,-500.0,0.00026427,2]
[311345973,1705065118189,-1258.22,0.00026427,2]
[311345974,1705065118199,-500.0,0.00026427,2]
[311345975,1705065118208,-500.0,0.00026427,2]
[311345976,1705065118219,-620.89,0.00026427,2]
[311345977,1705065118230,-500.0,0.00026427,2]
[311345978,1705065118239,-993.03,0.00026427,2]
[311345979,1705065118250,-724.59,0.00026427,2]
[311345980,1705065118259,-500.0,0.00026516,2]
[311345981,1705065118269,-200.0,0.00026545,2]
[311345982,1705065118278,-460.54,0.00026558,2]
[311345983,1705065118287,-162.24,0.00026575,2]
[311345984,1705065118296,-16677.8,0.00026575,2]
[311345985,1705065118306,-331.36,0.00026577,2]
[311345986,1705065118317,-1095.03,0.00026697,2]
[311345987,1705065118326,-2336.53,0.00026697,5]
[311345988,1705065118336,-660.44,0.00026697,2]
[311345989,1705065118345,-4983.08,0.00026697,2]
[311345990,1705065118354,-500.0,0.00026697,2]
[311345991,1705065118365,-6835.31,0.00026697,2]
[311345992,1705065118374,-1968.89,0.00026697,2]
[311345993,1705065118383,-14321.2,0.00026697,2]
[311345994,1705065118392,-549.3,0.00026697,2]
[311345995,1705065118401,-619.15,0.00026697,2]
[311345996,1705065118412,-1403.82,0.00026697,2]
[311345997,1705065118422,-722.98,0.00026697,2]
[311345998,1705065118433,-500.0,0.00026697,2]
[311345999,1705065118442,-607.61,0.00026697,2]
[311346000,1705065118451,-510.07,0.00026697,2]
[311346001,1705065118460,-749.86,0.00026697,2]
[311346002,1705065118470,-3048.94,0.00026697,2]
[311346003,1705065118480,-614.56,0.00026697,2]
[311346004,1705065118490,-500.0,0.00026697,2]
[311346005,1705065118499,-1294.29,0.00026697,2]
[311346006,1705065118508,-984.37,0.00026697,2]
[311346007,1705065118517,-675.45,0.00026697,2]
[311346008,1705065118527,-1709.12,0.00026697,2]
[311346009,1705065118535,-937.07,0.00026697,2]
[311346010,1705065118545,-2370.13,0.00026697,2]
[311346011,1705065118554,-793.03,0.00026697,2]
[311346012,1705065118563,-786.71,0.00026697,2]
[311346013,1705065118573,-1074.66,0.00026697,2]
[311346014,1705065118582,-2000.06,0.00026697,2]
[311346015,1705065118591,-3928.94,0.00026697,2]
[311346016,1705065118600,-1033.75,0.00026697,2]
[311346017,1705065118609,-874.55,0.00026697,2]
[311346018,1705065118619,-1304.48,0.00026697,2]
[311346019,1705065118628,-6963.0,0.00026697,2]
[311346020,1705065118637,-1048.12,0.00026697,2]
[311346021,1705065118647,-500.0,0.00026697,2]
[311346022,1705065118657,-500.0,0.00026697,2]
[311346023,1705065118666,-1205.23,0.00026697,2]
[311346024,1705065118676,-500.0,0.00026697,2]
[311346025,1705065118685,-736.05,0.00026697,2]
[311346026,1705065118694,-9796.43,0.00026697,2]
[311346027,1705065118704,-500.0,0.00026697,2]
[311346028,1705065118714,-2056.42,0.00026697,2]
[311346029,1705065118724,-600.05,0.00026697,2]
[311346030,1705065118733,-1076.15,0.00026697,2]
[311346031,1705065118743,-500.0,0.00026697,2]
[311346032,1705065118752,-1891.13,0.00026697,2]
[311346033,1705065118761,-2556.24,0.00026697,2]
[311346034,1705065118770,-750.14,0.00026697,2]
[311346035,1705065118780,-2721.6,0.00026697,2]
[311346036,1705065118790,-884.19,0.00026697,2]
[311346037,1705065118799,-2018.21,0.00026697,2]
[311346038,1705065118809,-2134.94,0.00026697,2]
[311346039,1705065118818,-500.0,0.00026697,2]
[311346040,1705065118827,-1493.07,0.00026697,2]
[311346041,1705065118836,-1084.3,0.00026697,2]
[311346042,1705065118846,-612.02,0.00026697,2]
[311346043,1705065118856,-500.0,0.00026697,2]
[311346044,1705065118866,-5673.19,0.00026697,2]
[311346045,1705065118875,-500.0,0.00026697,2]
[311346046,1705065118885,-1028.9,0.00026697,2]
[311346047,1705065118895,-2233.34,0.00026697,2]
[311346048,1705065118904,-710.28,0.00026697,2]
[311346049,1705065118915,-150.0,0.00026699,2]
[311346050,1705065118924,-338.18477304,0.000267,2]
[311346051,1705065118932,-1431.33,0.000267,2]
[311346052,1705065118943,-500.0,0.000267,2]
[311346053,1705065118952,-500.0,0.000267,2]
[311346054,1705065118962,-500.0,0.000267,2]
[311346055,1705065118971,-500.0,0.000267,2]
[311346056,1705065118981,-526.28,0.000267,2]
[311346057,1705065118990,-500.0,0.000267,2]
[311346058,1705065118999,-500.0,0.000267,2]
[311346059,1705065119009,-500.0,0.000267,2]
[311346060,1705065119018,-500.0,0.000267,2]
[311346061,1705065119028,-543.44,0.000267,2]
[311346062,1705065119037,-500.0,0.000267,2]
[311346063,1705065119046,-500.0,0.000267,2]
[311346064,1705065119056,-500.0,0.000267,2]
[311346065,1705065119065,-553.95,0.000267,2]
[311346066,1705065119076,-500.0,0.000267,2]
[311346067,1705065119085,-516.33,0.000267,2]
[311346068,1705065119094,-586.6,0.000267,2]
[311346069,1705065119103,-500.0,0.000267,2]
[311346070,1705065119112,-500.0,0.000267,2]
[311346071,1705065119121,-418.93039744,0.000267,2]
[311346072,1705065119130,-515.42,0.000267,2]
[311346073,1705065119139,-334.52199244,0.000267,2]
[311346074,1705065119148,-592.8,0.000267,2]
[311346075,1705065119157,-500.0,0.000267,2]
[311346076,1705065119166,-500.0,0.000267,2]
[311346077,1705065119175,-150.0,0.000267,2]
[311346078,1705065119184,-500.0,0.000267,2]
[311346079,1705065119193,-500.0,0.000267,2]
[311346080,1705065119202,-468.97881654,0.000267,2]
[311346081,1705065119211,-572.59,0.000267,2]
[311346082,1705065119375,-500.0,0.000267,2]
[311346083,1705065119385,-535.83,0.000267,2]
[311346084,1705065119395,-611.41,0.000267,2]
[311346085,1705065119405,-1479.42,0.000267,2]
[311346086,1705065119415,-500.0,0.000267,2]
[311346087,1705065119424,-500.0,0.000267,2]
[311346088,1705065119433,-1130.95,0.000267,2]
[311346089,1705065119442,-917.05,0.000267,2]
[311346090,1705065119452,-3574.26,0.000267,2]
[311346091,1705065119460,-526.02,0.000267,2]
[311346092,1705065119470,-500.0,0.000267,2]
[311346093,1705065119479,-514.03,0.000267,2]
[311346094,1705065119488,-1199.16,0.000267,2]
[311346095,1705065119497,-500.0,0.000267,2]
[311346096,1705065119507,-809.87,0.000267,2]
[311346097,1705065119516,-826.13,0.000267,2]
[311346098,1705065119525,-500.0,0.000267,2]
[311346099,1705065119534,-629.29,0.000267,2]
[311346100,1705065119544,-2053.17,0.000267,2]
[311346101,1705065119553,-500.0,0.000267,2]
[311346102,1705065119563,-500.0,0.000267,2]
[311346103,1705065119572,-713.26,0.000267,2]
[311346104,1705065119581,-896.29,0.000267,2]
[311346105,1705065119591,-1112.52,0.000267,2]
[311346106,1705065119600,-500.0,0.000267,2]
[311346107,1705065119610,-1157.27,0.000267,2]
[311346108,1705065119619,-574.98,0.000267,2]
[311346109,1705065119628,-597.76,0.000267,2]
[311346110,1705065119638,-1688.31,0.000267,2]
[311346111,1705065119647,-500.0,0.000267,2]
[311346112,1705065119658,-974.33,0.000267,2]
[311346113,1705065119667,-644.03,0.000267,2]
[311346114,1705065119678,-500.0,0.000267,2]
[311346115,1705065119689,-402.81290708,0.000267,2]
[311346116,1705065119698,-791.75,0.000267,2]
[311346117,1705065119708,-2017.32,0.000267,2]
[311346118,1705065119717,-705.71,0.000267,2]
[311346119,1705065119727,-655.0,0.000267,2]
[311346120,1705065119737,-535.6,0.000267,2]
[311346121,1705065119746,-1374.63,0.000267,2]
[311346122,1705065119755,-1550.52,0.000267,2]
[311346123,1705065119765,-1000.0,0.000267,2]
[311346124,1705065119775,-1473.58,0.000267,2]
[311346125,1705065119784,-805.25,0.000267,2]
[311346126,1705065119794,-1112.34,0.000267,2]
[311346127,1705065119803,-943.87,0.000267,2]
[311346128,1705065119812,-565.25,0.000267,2]
[311346129,1705065119822,-3783.76,0.000267,2]
[311346130,1705065119831,-500.0,0.000267,2]
[311346131,1705065119843,-32122.29906328,0.000267,2]
[311346132,1705065119852,-500.0,0.00026701,2]
[311346133,1705065119861,-527.36,0.00026701,2]
[311346134,1705065119870,-500.0,0.00026701,2]
[311346135,1705065119880,-511.53,0.00026701,2]
[311346136,1705065119890,-500.0,0.00026701,2]
[311346137,1705065119899,-500.0,0.00026701,2]
[311346138,1705065119908,-592.66,0.00026701,2]
[311346139,1705065119917,-500.0,0.00026701,2]
[311346140,1705065119926,-500.0,0.00026701,2]
[311346141,1705065119936,-625.53917371,0.00026701,2]
[311346142,1705065119945,-500.0,0.00026701,2]
[311346143,1705065119954,-500.0,0.00026701,2]
[311346144,1705065119963,-541.31552053,0.00026701,2]
[311346145,1705065119972,-214.30411943,0.00026701,2]
[311346146,1705065119982,-500.0,0.00026701,2]
[311346147,1705065119991,-500.0,0.00026701,2]
[311346148,1705065120000,-500.0,0.00026701,2]
[311346149,1705065120010,-557.22,0.00026701,2]
[311346150,1705065120020,-500.0,0.00026701,2]
[311346151,1705065120029,-500.0,0.00026701,2]
[311346152,1705065120039,-500.0,0.00026701,2]
[311346153,1705065120048,-506.67,0.00026701,2]
[311346154,1705065120057,-555.88,0.00026701,2]
[311346155,1705065120066,-500.0,0.00026701,2]
[311346156,1705065120075,-500.0,0.00026701,2]
[311346157,1705065120085,-500.0,0.00026701,2]
[311346158,1705065120094,-710.1,0.00026701,2]
[311346159,1705065120103,-500.0,0.00026701,2]
[311346160,1705065120112,-500.0,0.00026701,2]
[311346161,1705065120121,-500.0,0.00026701,2]
[311346162,1705065120131,-500.0,0.00026701,2]
[311346163,1705065120140,-1022.92,0.00026701,2]
[311346164,1705065120149,-1065.11,0.00026701,2]
[311346165,1705065120159,-973.85,0.00026701,2]
[311346166,1705065120169,-596.64,0.00026701,2]
[311346167,1705065120178,-1316.49,0.00026701,2]
[311346168,1705065120187,-565.15,0.00026701,2]
[311346169,1705065120198,-4908.84,0.00026701,2]
[311346170,1705065120207,-567.77,0.00026701,2]
[311346171,1705065120217,-500.0,0.00026701,2]
[311346172,1705065120227,-1555.67,0.00026701,2]
[311346173,1705065120237,-1400.6,0.00026701,5]
[311346174,1705065120246,-1433.76,0.00026701,2]
[311346175,1705065120256,-1359.51,0.00026701,2]
[311346176,1705065120266,-647.67,0.00026701,2]
[311346177,1705065120275,-756.74,0.00026701,2]
[311346178,1705065120285,-1876.2,0.00026701,2]
[311346179,1705065120294,-1309.3,0.00026701,2]
[311346180,1705065120303,-937.63,0.00026701,2]
[311346181,1705065120313,-2066.36,0.00026701,2]
[311346182,1705065120323,-3090.41,0.00026701,2]
[311346183,1705065120332,-660.9,0.00026701,2]
[311346184,1705065120342,-500.0,0.00026701,2]
[311346185,1705065120352,-500.0,0.00026701,2]
[311346186,1705065120361,-500.0,0.00026701,2]
[311346187,1705065120371,-1935.88,0.00026701,2]
[311346188,1705065120380,-505.19,0.00026701,2]
[311346189,1705065120390,-527.44,0.00026701,2]
[311346190,1705065120399,-500.0,0.00026701,2]
[311346191,1705065120408,-176.80898833,0.00026701,2]
[311346192,1705065120417,-1258.22,0.00026701,2]
[311346193,1705065120426,-500.0,0.00026701,2]
[311346194,1705065120435,-500.0,0.00026701,2]
[311346195,1705065120446,-620.89,0.00026701,2]
[311346196,1705065120455,-500.0,0.00026701,2]
[311346197,1705065120464,-993.03,0.00026701,2]
[311346198,1705065120474,-724.59,0.00026701,2]
[311346199,1705065120484,-500.0,0.00026828,2]
[311346200,1705065120493,-1095.03,0.00026971,2]
[311346201,1705065120502,-2336.53,0.00026971,5]
[311346202,1705065120511,-660.44,0.00026971,2]
[311346203,1705065120520,-4983.08,0.00026971,2]
[311346204,1705065120529,-500.0,0.00026971,2]
[311346205,1705065120539,-6835.31,0.00026971,2]
[311346206,1705065120548,-1968.89,0.00026971,2]
[311346207,1705065120558,-14321.2,0.00026971,2]
[311346208,1705065120567,-549.3,0.00026971,2]
[311346209,1705065120576,-619.15,0.00026971,2]
[311346210,1705065120585,-1403.82,0.00026971,2]
[311346211,1705065120595,-722.98,0.00026971,2]
[311346212,1705065120605,-500.0,0.00026971,2]
[311346213,1705065120615,-607.61,0.00026971,2]
[311346214,1705065120624,-510.07,0.00026971,2]
[311346215,1705065120634,-749.86,0.00026971,2]
[311346216,1705065120644,-3048.94,0.00026971,2]
[311346217,1705065120653,-500.0,0.00026971,2]
[311346218,1705065120662,-1294.29,0.00026971,2]
[311346219,1705065120672,-984.37,0.00026971,2]
[311346220,1705065120682,-675.45,0.00026971,2]
[311346221,1705065120692,-1709.12,0.00026971,2]
[311346222,1705065120701,-937.07,0.00026971,2]
[311346223,1705065120711,-2370.13,0.00026971,2]
[311346224,1705065120720,-793.03,0.00026971,2]
[311346225,1705065120729,-786.71,0.00026971,2]
[311346226,1705065120739,-1074.66,0.00026971,2]
[311346227,1705065120749,-2000.06,0.00026971,2]
[311346228,1705065120758,-3928.94,0.00026971,2]
[311346229,1705065120767,-1033.75,0.00026971,2]
[311346230,1705065120776,-874.55,0.00026971,2]
[311346231,1705065120787,-1304.48,0.00026971,2]
[311346232,1705065120797,-6963.0,0.00026971,2]
[311346233,1705065120806,-1048.12,0.00026971,2]
[311346234,1705065120816,-500.0,0.00026971,2]
[311346235,1705065120825,-500.0,0.00026971,2]
[311346236,1705065120835,-1205.23,0.00026971,2]
[311346237,1705065120845,-265.39641221,0.00026971,2]
[311346238,1705065120854,-736.05,0.00026971,2]
[311346239,1705065120863,-9796.43,0.00026971,2]
[311346240,1705065120873,-500.0,0.00026971,2]
[311346241,1705065120882,-2056.42,0.00026971,2]
[311346242,1705065120892,-600.05,0.00026971,2]
[311346243,1705065120902,-1076.15,0.00026971,2]
[311346244,1705065120912,-500.0,0.00026971,2]
[311346245,1705065120921,-1891.13,0.00026971,2]
[311346246,1705065120931,-2556.24,0.00026971,2]
[311346247,1705065120940,-750.14,0.00026971,2]
[311346248,1705065120950,-2721.6,0.00026971,2]
[311346249,1705065120960,-884.19,0.00026971,2]
[311346250,1705065120970,-2018.21,0.00026971,2]
[311346251,1705065120980,-2134.94,0.00026971,2]
[311346252,1705065120989,-569.86771665,0.00026971,2]
[311346253,1705065120998,-1493.07,0.00026971,2]
[311346254,1705065121007,-1084.3,0.00026971,2]
[311346255,1705065121017,-612.02,0.00026971,2]
[311346256,1705065121027,-500.0,0.00026971,2]
[311346257,1705065121037,-5673.19,0.00026971,2]
[311346258,1705065121047,-306.34413073,0.00026971,2]
[311346259,1705065121056,-1028.9,0.00026971,2]
[311346260,1705065121066,-2233.34,0.00026971,2]
[311346261,1705065121075,-710.28,0.00026971,2]
[311346262,1705065121084,-1431.33,0.00026974,2]
[311346263,1705065121094,-500.0,0.00026974,2]
[311346264,1705065121103,-500.0,0.00026974,2]
[311346265,1705065121112,-500.0,0.00026974,2]
[311346266,1705065121121,-500.0,0.00026974,2]
[311346267,1705065121130,-526.28,0.00026974,2]
[311346268,1705065121139,-500.0,0.00026974,2]
[311346269,1705065121148,-500.0,0.00026974,2]
[311346270,1705065121157,-500.0,0.00026974,2]
[311346271,1705065121167,-500.0,0.00026974,2]
[311346272,1705065121176,-543.44,0.00026974,2]
[311346273,1705065121185,-500.0,0.00026974,2]
[311346274,1705065121194,-500.0,0.00026974,2]
[311346275,1705065121203,-292.90810785,0.00026974,2]
[311346276,1705065121213,-553.95,0.00026974,2]
[311346277,1705065121222,-500.0,0.00026974,2]
[311346278,1705065121232,-516.33,0.00026974,2]
[311346279,1705065121241,-586.6,0.00026974,2]
[311346280,1705065121250,-500.0,0.00026974,2]
[311346281,1705065121259,-500.0,0.00026974,2]
[311346282,1705065121269,-515.42,0.00026974,2]
[311346283,1705065121278,-592.8,0.00026974,2]
[311346284,1705065121287,-500.0,0.00026974,2]
[311346285,1705065121296,-500.0,0.00026974,2]
[311346286,1705065121305,-150.0,0.00026974,2]
[311346287,1705065121315,-500.0,0.00026974,2]
[311346288,1705065121324,-500.0,0.00026974,2]
[311346289,1705065121333,-572.59,0.00026974,2]
[311346290,1705065121342,-256.83236386,0.00026974,2]
[311346291,1705065121351,-535.83,0.00026974,2]
[311346292,1705065121360,-611.41,0.00026974,2]
[311346293,1705065121370,-1479.42,0.00026974,2]
[311346294,1705065121379,-500.0,0.00026974,2]
[311346295,1705065121389,-500.0,0.00026974,2]
[311346296,1705065121398,-1130.95,0.00026974,2]
[311346297,1705065121407,-917.05,0.00026974,2]
[311346298,1705065121416,-3574.26,0.00026974,2]
[311346299,1705065121425,-526.02,0.00026974,2]
[311346300,1705065121434,-500.0,0.00026974,2]
[311346301,1705065121444,-514.03,0.00026974,2]
[311346302,1705065121453,-1199.16,0.00026974,2]
[311346303,1705065121463,-500.0,0.00026974,2]
[311346304,1705065121472,-809.87,0.00026974,2]
[311346305,1705065121481,-826.13,0.00026974,2]
[311346306,1705065121490,-500.0,0.00026974,2]
[311346307,1705065121500,-629.29,0.00026974,2]
[311346308,1705065121509,-2053.17,0.00026974,2]
[311346309,1705065121519,-500.0,0.00026974,2]
[311346310,1705065121528,-500.0,0.00026974,2]
[311346311,1705065121538,-713.26,0.00026974,2]
[311346312,1705065121547,-896.29,0.00026974,2]
[311346313,1705065121556,-1112.52,0.00026974,2]
[311346314,1705065121566,-500.0,0.00026974,2]
[311346315,1705065121575,-1157.27,0.00026974,2]
[311346316,1705065121584,-574.98,0.00026974,2]
[311346317,1705065121593,-597.76,0.00026974,2]
[311346318,1705065121603,-1688.31,0.00026974,2]
[311346319,1705065121613,-500.0,0.00026974,2]
[311346320,1705065121623,-974.33,0.00026974,2]
[311346321,1705065121633,-644.03,0.00026974,2]
[311346322,1705065121642,-500.0,0.00026974,2]
[311346323,1705065121651,-791.75,0.00026974,2]
[311346324,1705065121660,-2017.32,0.00026974,2]
[311346325,1705065121669,-705.71,0.00026974,2]
[311346326,1705065121678,-655.0,0.00026974,2]
[311346327,1705065121697,-535.6,0.00026974,2]
[311346328,1705065121709,-1374.63,0.00026974,2]
[311346329,1705065121719,-1550.52,0.00026974,2]
[311346330,1705065121730,-1473.58,0.00026974,2]
[311346331,1705065121740,-805.25,0.00026974,2]
[311346332,1705065121750,-1112.34,0.00026974,2]
[311346333,1705065121759,-943.87,0.00026974,2]
[311346334,1705065121769,-565.25,0.00026974,2]
[311346335,1705065121779,-3783.76,0.00026974,2]
[311346336,1705065121789,-500.0,0.00026974,2]
[311346337,1705065121798,-500.0,0.00026975,2]
[311346338,1705065121808,-527.36,0.00026975,2]
[311346339,1705065121817,-235.55911553,0.00026975,2]
[311346340,1705065121827,-511.53,0.00026975,2]
[311346341,1705065121839,-500.0,0.00026975,2]
[311346342,1705065121848,-500.0,0.00026975,2]
[311346343,1705065122064,-592.66,0.00026975,2]
[311346344,1705065122074,-418.01795284,0.00026975,2]
[311346345,1705065122083,-500.0,0.00026975,2]
[311346346,1705065122092,-500.0,0.00026975,2]
[311346347,1705065122102,-500.0,0.00026975,2]
[311346348,1705065122111,-500.0,0.00026975,2]
[311346349,1705065122120,-500.0,0.00026975,2]
[311346350,1705065122129,-500.0,0.00026975,2]
[311346351,1705065122139,-557.22,0.00026975,2]
[311346352,1705065122148,-500.0,0.00026975,2]
[311346353,1705065122157,-500.0,0.00026975,2]
[311346354,1705065122166,-500.0,0.00026975,2]
[311346355,1705065122176,-506.67,0.00026975,2]
[311346356,1705065122185,-555.88,0.00026975,2]
[311346357,1705065122195,-524.43068538,0.00026975,2]
[311346358,1705065122205,-500.0,0.00026975,2]
[311346359,1705065122214,-500.0,0.00026975,2]
[311346360,1705065122224,-710.1,0.00026975,2]
[311346361,1705065122234,-500.0,0.00026975,2]
[311346362,1705065122243,-500.0,0.00026975,2]
[311346363,1705065122252,-500.0,0.00026975,2]
[311346364,1705065122262,-500.0,0.00026975,2]
[311346365,1705065122271,-1022.92,0.00026975,2]
[311346366,1705065122280,-1065.11,0.00026975,2]
[311346367,1705065122289,-973.85,0.00026975,2]
[311346368,1705065122299,-596.64,0.00026975,2]
[311346369,1705065122308,-1316.49,0.00026975,2]
[311346370,1705065122317,-565.15,0.00026975,2]
[311346371,1705065122326,-4908.84,0.00026975,2]
[311346372,1705065122336,-567.77,0.00026975,2]
[311346373,1705065122345,-500.0,0.00026975,2]
[311346374,1705065122354,-1555.67,0.00026975,2]
[311346375,1705065122363,-1400.6,0.00026975,5]
[311346376,1705065122372,-1433.76,0.00026975,2]
[311346377,1705065122382,-1359.51,0.00026975,2]
[311346378,1705065122391,-647.67,0.00026975,2]
[311346379,1705065122400,-756.74,0.00026975,2]
[311346380,1705065122410,-1876.2,0.00026975,2]
[311346381,1705065122419,-1309.3,0.00026975,2]
[311346382,1705065122428,-937.63,0.00026975,2]
[311346383,1705065122437,-2066.36,0.00026975,2]
[311346384,1705065122446,-3090.41,0.00026975,2]
[311346385,1705065122456,-660.9,0.00026975,2]
[311346386,1705065122466,-500.0,0.00026975,2]
[311346387,1705065122475,-500.0,0.00026975,2]
[311346388,1705065122485,-500.0,0.00026975,2]
[311346389,1705065122494,-1935.88,0.00026975,2]
[311346390,1705065122504,-505.19,0.00026975,2]
[311346391,1705065122514,-527.44,0.00026975,2]
[311346392,1705065122523,-500.0,0.00026975,2]
[311346393,1705065122533,-1258.22,0.00026975,2]
[311346394,1705065122542,-500.0,0.00026975,2]
[311346395,1705065122551,-500.0,0.00026975,2]
[311346396,1705065122561,-620.89,0.00026975,2]
[311346397,1705065122571,-500.0,0.00026975,2]
[311346398,1705065122581,-993.03,0.00026975,2]
[311346399,1705065122590,-724.59,0.00026975,2]
[311346400,1705065122600,-12283.43506918,0.00027,2]
[311346401,1705065122610,-155.0,0.00027,2]
[311346402,1705065122619,-369.42972607,0.00027,2]
[311346403,1705065122629,-600.0,0.00027,3]
[311346404,1705065122639,-174398.87869815,0.00027138,2]
[311346405,1705065122648,-500.0,0.0002714,2]
[311346406,1705065122657,-285.59,0.00027143,2]
[311346407,1705065122667,-500.0,0.00027188,2]
[311346408,1705065122676,-1095.03,0.00027245,2]
[311346409,1705065122686,-2336.53,0.00027245,5]
[311346410,1705065122696,-660.44,0.00027245,2]
[311346411,1705065122706,-4983.08,0.00027245,2]
[311346412,1705065122715,-500.0,0.00027245,2]
[311346413,1705065122730,-6835.31,0.00027245,2]
[311346414,1705065122739,-1968.89,0.00027245,2]
[311346415,1705065122748,-14321.2,0.00027245,2]
[311346416,1705065122758,-549.3,0.00027245,2]
[311346417,1705065122767,-619.15,0.00027245,2]
[311346418,1705065122777,-1403.82,0.00027245,2]
[311346419,1705065122787,-722.98,0.00027245,2]
[311346420,1705065122797,-500.0,0.00027245,2]
[311346421,1705065122807,-607.61,0.00027245,2]
[311346422,1705065122816,-510.07,0.00027245,2]
[311346423,1705065122827,-749.86,0.00027245,2]
[311346424,1705065122837,-3048.94,0.00027245,2]
[311346425,1705065122854,-500.0,0.00027245,2]
[311346426,1705065122863,-1294.29,0.00027245,2]
[311346427,1705065122873,-984.37,0.00027245,2]
[311346428,1705065122882,-675.45,0.00027245,2]
[311346429,1705065122892,-1709.12,0.00027245,2]
[311346430,1705065122901,-937.07,0.00027245,2]
[311346431,1705065122911,-2370.13,0.00027245,2]
[311346432,1705065122920,-793.03,0.00027245,2]
[311346433,1705065122930,-786.71,0.00027245,2]
[311346434,1705065122939,-1074.66,0.00027245,2]
[311346435,1705065122948,-2000.06,0.00027245,2]
[311346436,1705065122957,-3928.94,0.00027245,2]
[311346437,1705065122966,-1033.75,0.00027245,2]
[311346438,1705065122976,-874.55,0.00027245,2]
[311346439,1705065122986,-1304.48,0.00027245,2]
[311346440,1705065122995,-6963.0,0.00027245,2]
[311346441,1705065123004,-1048.12,0.00027245,2]
[311346442,1705065123014,-541.8307138,0.00027245,2]
[311346443,1705065123022,-500.0,0.00027245,2]
[311346444,1705065123032,-1205.23,0.00027245,2]
[311346445,1705065123041,-736.05,0.00027245,2]
[311346446,1705065123051,-9796.43,0.00027245,2]
[311346447,1705065123060,-500.0,0.00027245,2]